[Event "Norwegian Championship 2022"]
[Site "Kongsvinger, Norway"]
[Date "2022.07.15"]
[Round "8"]
[White "Urkedal, Frode Olav Olsen"]
[Black "Kaasen, Tor Fredrik"]
[Result "1/2-1/2"]
[Board "2"]
[TimeControl "40/5400+30:1800+30"]
[WhiteTitle "GM"]
[BlackTitle "IM"]
[WhiteFideId "1506102"]
[BlackFideId "1516647"]
[WhiteElo "2555"]
[BlackElo "2433"]

1. c4 {[%clk 01:30:58]} {[%emt 00:00:02]} g6 {[%clk 01:29:46]} {[%emt
00:01:14]} 2. Nf3 {[%clk 01:30:21]} {[%emt 00:01:07]} Bg7 {[%clk 01:30:00]}
{[%emt 00:00:14]} 3. d4 {[%clk 01:30:29]} {[%emt 00:00:23]} Nf6 {[%clk
01:29:59]} {[%emt 00:00:30]} 4. Nc3 {[%clk 01:30:54]} {[%emt 00:00:06]} d5
{[%clk 01:30:01]} {[%emt 00:00:24]} 5. cxd5 {[%clk 01:30:06]} {[%emt 00:01:22]}
Nxd5 {[%clk 01:30:23]} {[%emt 00:00:07]} 6. e4 {[%clk 01:30:17]} {[%emt
00:00:19]} Nxc3 {[%clk 01:30:04]} {[%emt 00:00:48]} 7. bxc3 {[%clk 01:30:43]}
{[%emt 00:00:07]} c5 {[%clk 01:30:24]} {[%emt 00:00:10]} 8. Be3 {[%clk
01:29:37]} {[%emt 00:01:35]} Qa5 {[%clk 01:30:24]} {[%emt 00:00:30]} 9. Qd2
{[%clk 01:29:55]} {[%emt 00:00:12]} Nc6 {[%clk 01:30:26]} {[%emt 00:00:28]} 10.
Rc1 {[%clk 01:29:23]} {[%emt 00:01:03]} cxd4 {[%clk 01:29:29]} {[%emt
00:01:27]} 11. cxd4 {[%clk 01:29:46]} {[%emt 00:00:07]} Qxd2+ {[%clk 01:29:35]}
{[%emt 00:00:24]} 12. Kxd2 {[%clk 01:30:10]} {[%emt 00:00:06]} O-O {[%clk
01:29:51]} {[%emt 00:00:14]} 13. Bd3 {[%clk 01:24:10]} {[%emt 00:06:30]} Rd8
{[%clk 01:28:48]} {[%emt 00:01:32]} 14. Rc4 {[%clk 01:00:56]} {[%emt 00:23:46]}
Bg4 {[%clk 01:28:31]} {[%emt 00:00:46]} 15. d5 {[%clk 00:57:19]} {[%emt
00:04:07]} Bxf3 {[%clk 01:28:40]} {[%emt 00:00:20]} 16. gxf3 {[%clk 00:54:37]}
{[%emt 00:03:12]} Ne5 {[%clk 01:28:24]} {[%emt 00:00:45]} 17. Rc7 {[%clk
00:55:02]} {[%emt 00:00:06]} e6 {[%clk 01:27:33]} {[%emt 00:01:19]} 18. Rxb7
{[%clk 00:37:42]} {[%emt 00:17:52]} exd5 {[%clk 01:26:53]} {[%emt 00:01:09]} 19.
Ke2 {[%clk 00:38:08]} {[%emt 00:00:05]} Nxd3 {[%clk 01:23:21]} {[%emt
00:04:01]} 20. Kxd3 {[%clk 00:38:32]} {[%emt 00:00:05]} dxe4+ {[%clk 01:20:14]}
{[%emt 00:03:38]} 21. Kxe4 {[%clk 00:38:37]} {[%emt 00:00:24]} f5+ {[%clk
01:18:54]} {[%emt 00:01:50]} 22. Kf4 {[%clk 00:39:02]} {[%emt 00:00:05]} Bh6+
{[%clk 01:09:59]} {[%emt 00:09:26]} 23. Kg3 {[%clk 00:38:41]} {[%emt 00:00:52]}
Bxe3 {[%clk 01:05:50]} {[%emt 00:04:39]} 24. fxe3 {[%clk 00:38:53]} {[%emt
00:00:17]} Rd2 {[%clk 01:02:46]} {[%emt 00:03:33]} 25. Rc1 {[%clk 00:39:05]}
{[%emt 00:00:20]} g5 {[%clk 00:50:15]} {[%emt 00:13:02]} 26. Rcc7 {[%clk
00:16:15]} {[%emt 00:23:20]} f4+ {[%clk 00:47:56]} {[%emt 00:02:49]} 27. exf4
{[%clk 00:16:33]} {[%emt 00:00:11]} gxf4+ {[%clk 00:48:19]} {[%emt 00:00:07]}
28. Kh3 {[%clk 00:16:37]} {[%emt 00:00:27]} Rxa2 {[%clk 00:41:46]} {[%emt
00:07:02]} 29. Rg7+ {[%clk 00:15:46]} {[%emt 00:01:21]} Kh8 {[%clk 00:40:18]}
{[%emt 00:01:59]} 30. Rxh7+ {[%clk 00:16:09]} {[%emt 00:00:07]} Kg8 {[%clk
00:40:45]} {[%emt 00:00:03]} 31. Rhg7+ {[%clk 00:15:37]} {[%emt 00:01:01]} Kh8
{[%clk 00:41:07]} {[%emt 00:00:08]} 32. Rgf7 {[%clk 00:08:41]} {[%emt
00:07:26]} a5 {[%clk 00:35:01]} {[%emt 00:06:37]} 33. Rxf4 {[%clk 00:08:24]}
{[%emt 00:00:47]} a4 {[%clk 00:32:15]} {[%emt 00:03:16]} 34. Rh4+ {[%clk
00:01:43]} {[%emt 00:07:10]} Kg8 {[%clk 00:32:39]} {[%emt 00:00:06]} 35. Rg4+
{[%clk 00:02:11]} {[%emt 00:00:02]} Kh8 {[%clk 00:30:59]} {[%emt 00:02:11]} 36.
Rb5 {[%clk 00:01:51]} {[%emt 00:00:50]} Ra7 {[%clk 00:30:28]} {[%emt 00:01:02]}
37. Rb8+ {[%clk 00:02:05]} {[%emt 00:00:15]} Kh7 {[%clk 00:30:45]} {[%emt
00:00:12]} 38. Rb5 {[%clk 00:00:47]} {[%emt 00:01:49]} Ra6 {[%clk 00:24:05]}
{[%emt 00:07:10]} 39. Rb7+ {[%clk 00:00:58]} {[%emt 00:00:19]} Kh6 {[%clk
00:22:49]} {[%emt 00:01:46]} 40. Rb8 {[%clk 00:30:59]} {[%emt 00:00:28]} Kh7
{[%clk 00:52:47]} {[%emt 00:00:31]} 41. Rb7+ {[%clk 00:30:52]} {[%emt
00:00:39]} Kh6 {[%clk 00:50:53]} {[%emt 00:02:24]} 42. Kg3 {[%clk 00:17:38]}
{[%emt 00:13:44]} a3 {[%clk 00:44:20]} {[%emt 00:07:02]} 43. Rb8 {[%clk
00:12:11]} {[%emt 00:05:57]} Kh7 {[%clk 00:43:53]} {[%emt 00:00:56]} 44. Rb7+
{[%clk 00:11:31]} {[%emt 00:01:11]} Kh6 {[%clk 00:44:12]} {[%emt 00:00:11]} 45.
Rh4+ {[%clk 00:11:02]} {[%emt 00:00:59]} Kg6 {[%clk 00:43:46]} {[%emt
00:00:55]} 46. Rbh7 {[%clk 00:11:01]} {[%emt 00:00:32]} Ra8 {[%clk 00:41:55]}
{[%emt 00:02:21]} 47. R4h6+ {[%clk 00:06:58]} {[%emt 00:04:33]} Kf5 {[%clk
00:41:16]} {[%emt 00:01:06]} 48. Rh5+ {[%clk 00:07:01]} {[%emt 00:00:29]} Kg6
{[%clk 00:39:46]} {[%emt 00:02:00]} 49. R5h6+ {[%clk 00:04:59]} {[%emt
00:02:33]} Kf5 {[%clk 00:40:10]} {[%emt 00:00:07]} 50. Rh8 {[%clk 00:04:56]}
{[%emt 00:00:33]} Rxh8 {[%clk 00:31:33]} {[%emt 00:09:07]} 51. Rxh8 {[%clk
00:05:22]} {[%emt 00:00:03]} Ra1 {[%clk 00:31:48]} {[%emt 00:00:15]} 52. Rh5+
{[%clk 00:05:30]} {[%emt 00:00:22]} Kg6 {[%clk 00:31:57]} {[%emt 00:00:22]} 53.
Ra5 {[%clk 00:05:53]} {[%emt 00:00:07]} a2 {[%clk 00:32:15]} {[%emt 00:00:12]}
54. Kf4 {[%clk 00:06:11]} {[%emt 00:00:12]} Kf6 {[%clk 00:32:36]} {[%emt
00:00:10]} 55. Ra6+ {[%clk 00:04:56]} {[%emt 00:01:45]} Kf7 {[%clk 00:32:38]}
{[%emt 00:00:28]} 56. h4 {[%clk 00:05:10]} {[%emt 00:00:16]} Rh1 {[%clk
00:32:03]} {[%emt 00:01:05]} 57. Rxa2 {[%clk 00:05:34]} {[%emt 00:00:07]} Rxh4+
{[%clk 00:32:28]} {[%emt 00:00:05]} 58. Kg5 {[%clk 00:06:01]} {[%emt 00:00:03]}
Rb4 {[%clk 00:32:36]} {[%emt 00:00:22]} 59. Ra7+ {[%clk 00:06:24]} {[%emt
00:00:07]} Kf8 {[%clk 00:32:44]} {[%emt 00:00:22]} 60. Ra6 {[%clk 00:05:59]}
{[%emt 00:00:55]} Kf7 {[%clk 00:32:24]} {[%emt 00:00:48]} 61. f4 {[%clk
00:06:19]} {[%emt 00:00:11]} Rb1 {[%clk 00:32:20]} {[%emt 00:00:35]} 62. Rf6+
{[%clk 00:05:02]} {[%emt 00:01:47]} Kg7 {[%clk 00:32:35]} {[%emt 00:00:14]} 63.
Rd6 {[%clk 00:05:12]} {[%emt 00:00:20]} Kf7 {[%clk 00:32:34]} {[%emt 00:00:32]}
64. Rc6 {[%clk 00:04:12]} {[%emt 00:01:31]} Ra1 {[%clk 00:32:12]} {[%emt
00:00:51]} 65. Rb6 {[%clk 00:04:36]} {[%emt 00:00:07]} Rc1 {[%clk 00:32:32]}
{[%emt 00:00:10]} 66. Rb7+ {[%clk 00:04:06]} {[%emt 00:01:01]} Kf8 {[%clk
00:32:54]} {[%emt 00:00:07]} 67. Kf6 {[%clk 00:03:28]} {[%emt 00:01:08]} Rc6+
{[%clk 00:33:11]} {[%emt 00:00:13]} 68. Ke5 {[%clk 00:03:49]} {[%emt 00:00:10]}
Rc5+ {[%clk 00:32:48]} {[%emt 00:00:53]} 69. Ke6 {[%clk 00:03:57]} {[%emt
00:00:22]} Rc6+ {[%clk 00:33:07]} {[%emt 00:00:12]} 70. Kd5 {[%clk 00:04:22]}
{[%emt 00:00:04]} Ra6 {[%clk 00:33:08]} {[%emt 00:00:29]} 71. Rd7 {[%clk
00:04:11]} {[%emt 00:00:41]} Ke8 {[%clk 00:32:03]} {[%emt 00:01:34]} 72. Rh7
{[%clk 00:04:12]} {[%emt 00:00:29]} Kf8 {[%clk 00:32:11]} {[%emt 00:00:23]} 73.
Ke5 {[%clk 00:04:31]} {[%emt 00:00:11]} Ra5+ {[%clk 00:32:23]} {[%emt
00:00:17]} 74. Kf6 {[%clk 00:04:55]} {[%emt 00:00:06]} Ra6+ {[%clk 00:32:49]}
{[%emt 00:00:04]} 75. Kg5 {[%clk 00:05:20]} {[%emt 00:00:04]} Ra5+ {[%clk
00:32:59]} {[%emt 00:00:21]} 76. Kh4 {[%clk 00:04:23]} {[%emt 00:01:26]} Ra1
{[%clk 00:33:14]} {[%emt 00:00:15]} 77. Kg4 {[%clk 00:04:47]} {[%emt 00:00:07]}
Ra6 {[%clk 00:33:35]} {[%emt 00:00:10]} 78. Kg5 {[%clk 00:04:58]} {[%emt
00:00:18]} Ra5+ {[%clk 00:34:00]} {[%emt 00:00:05]} 79. f5 {[%clk 00:05:25]}
{[%emt 00:00:03]} Ra6 {[%clk 00:34:24]} {[%emt 00:00:06]} 80. Rb7 {[%clk
00:05:50]} {[%emt 00:00:03]} Rc6 {[%clk 00:34:01]} {[%emt 00:00:53]} 81. Ra7
{[%clk 00:06:17]} {[%emt 00:00:04]} Rb6 {[%clk 00:34:21]} {[%emt 00:00:10]} 82.
f6 {[%clk 00:06:32]} {[%emt 00:00:14]} Rb1 {[%clk 00:34:46]} {[%emt 00:00:05]}
83. Ra8+ {[%clk 00:06:58]} {[%emt 00:00:05]} Kf7 {[%clk 00:35:13]} {[%emt
00:00:03]} 84. Ra7+ {[%clk 00:07:25]} {[%emt 00:00:03]} 1/2-1/2

[Event "Norwegian Championship 2022"]
[Site "Kongsvinger, Norway"]
[Date "2022.07.15"]
[Round "8"]
[White "Vestby-Ellingsen, Mads"]
[Black "Hammer, Jon Ludvig"]
[Result "0-1"]
[Board "3"]
[TimeControl "40/5400+30:1800+30"]
[WhiteTitle "IM"]
[BlackTitle "GM"]
[WhiteFideId "1520857"]
[BlackFideId "1503707"]
[WhiteElo "2351"]
[BlackElo "2638"]

1. e4 {[%clk 01:30:54]} {[%emt 00:00:03]} c5 {[%clk 01:30:56]} {[%emt
00:00:06]} 2. Nf3 {[%clk 01:31:08]} {[%emt 00:00:15]} e6 {[%clk 01:31:21]}
{[%emt 00:00:07]} 3. d4 {[%clk 01:30:25]} {[%emt 00:01:11]} cxd4 {[%clk
01:31:45]} {[%emt 00:00:07]} 4. Nxd4 {[%clk 01:30:46]} {[%emt 00:00:08]} Nf6
{[%clk 01:32:10]} {[%emt 00:00:05]} 5. Nc3 {[%clk 01:31:00]} {[%emt 00:00:15]}
Nc6 {[%clk 01:32:35]} {[%emt 00:00:05]} 6. Nxc6 {[%clk 01:23:03]} {[%emt
00:08:26]} bxc6 {[%clk 01:33:04]} {[%emt 00:00:02]} 7. e5 {[%clk 01:23:12]}
{[%emt 00:00:20]} Nd5 {[%clk 01:33:32]} {[%emt 00:00:03]} 8. Ne4 {[%clk
01:23:28]} {[%emt 00:00:13]} Qc7 {[%clk 01:31:45]} {[%emt 00:02:19]} 9. f4
{[%clk 01:23:43]} {[%emt 00:00:13]} Qb6 {[%clk 01:32:12]} {[%emt 00:00:04]} 10.
c4 {[%clk 01:22:29]} {[%emt 00:01:42]} Bb4+ {[%clk 01:32:31]} {[%emt 00:00:12]}
11. Ke2 {[%clk 01:22:47]} {[%emt 00:00:12]} f5 {[%clk 01:32:50]} {[%emt
00:00:12]} 12. Nf2 {[%clk 01:19:57]} {[%emt 00:03:19]} Ba6 {[%clk 01:32:51]}
{[%emt 00:00:31]} 13. Kf3 {[%clk 01:19:50]} {[%emt 00:00:36]} Ne7 {[%clk
01:33:18]} {[%emt 00:00:04]} 14. Be3 {[%clk 01:10:48]} {[%emt 00:09:31]} Bc5
{[%clk 01:33:46]} {[%emt 00:00:02]} 15. Bxc5 {[%clk 01:10:52]} {[%emt
00:00:26]} Qxc5 {[%clk 01:34:14]} {[%emt 00:00:02]} 16. Qd6 {[%clk 01:10:23]}
{[%emt 00:00:59]} Qa5 {[%clk 01:34:37]} {[%emt 00:00:08]} 17. h4 {[%clk
00:52:11]} {[%emt 00:18:41]} Rd8 {[%clk 01:35:02]} {[%emt 00:00:06]} 18. h5
{[%clk 00:38:43]} {[%emt 00:13:57]} Rg8 {[%clk 01:13:52]} {[%emt 00:21:41]} 19.
Qd3 {[%clk 00:17:24]} {[%emt 00:21:48]} c5 {[%clk 01:05:44]} {[%emt 00:08:39]}
20. Qe3 {[%clk 00:16:26]} {[%emt 00:01:27]} Nc6 {[%clk 01:03:37]} {[%emt
00:02:38]} 21. Kg3 {[%clk 00:15:16]} {[%emt 00:01:39]} g5 {[%clk 00:40:11]}
{[%emt 00:23:57]} 22. fxg5 {[%clk 00:13:34]} {[%emt 00:02:11]} Qc7 {[%clk
00:40:20]} {[%emt 00:00:22]} 23. Re1 {[%clk 00:03:24]} {[%emt 00:10:40]} d6
{[%clk 00:40:38]} {[%emt 00:00:12]} 24. exd6 {[%clk 00:03:06]} {[%emt
00:00:47]} Rxd6 {[%clk 00:40:47]} {[%emt 00:00:21]} 25. Kh3 {[%clk 00:03:24]}
{[%emt 00:00:12]} Qe7 {[%clk 00:38:53]} {[%emt 00:02:24]} 26. Kh2 {[%clk
00:01:19]} {[%emt 00:02:35]} Rxg5 {[%clk 00:38:27]} {[%emt 00:00:56]} 27. Nh3
{[%clk 00:01:21]} {[%emt 00:00:28]} Rxh5 {[%clk 00:27:54]} {[%emt 00:11:04]} 28.
Be2 {[%clk 00:01:44]} {[%emt 00:00:06]} Rh4 {[%clk 00:28:08]} {[%emt 00:00:16]}
29. Qxc5 {[%clk 00:01:39]} {[%emt 00:00:36]} Nd4 {[%clk 00:27:56]} {[%emt
00:00:41]} 30. Qe5 {[%clk 00:00:34]} {[%emt 00:01:35]} Nxe2 {[%clk 00:23:45]}
{[%emt 00:04:41]} 31. Rxe2 {[%clk 00:00:51]} {[%emt 00:00:13]} Bxc4 {[%clk
00:24:03]} {[%emt 00:00:13]} 32. Re3 {[%clk 00:00:57]} {[%emt 00:00:23]} Rd2
{[%clk 00:13:18]} {[%emt 00:11:14]} 33. Rg3 {[%clk 00:00:33]} {[%emt 00:00:55]}
Qd6 {[%clk 00:13:28]} {[%emt 00:00:19]} 34. Qxd6 {[%clk 00:00:31]} {[%emt
00:00:32]} Rxd6 {[%clk 00:13:52]} {[%emt 00:00:06]} 35. b3 {[%clk 00:00:34]}
{[%emt 00:00:28]} Bd5 {[%clk 00:13:05]} {[%emt 00:01:17]} 36. Rc1 {[%clk
00:00:43]} {[%emt 00:00:21]} Rd7 {[%clk 00:11:46]} {[%emt 00:01:49]} 37. Kg1
{[%clk 00:00:32]} {[%emt 00:00:40]} Kf7 {[%clk 00:11:54]} {[%emt 00:00:21]} 38.
Rf1 {[%clk 00:00:31]} {[%emt 00:00:32]} Kf6 {[%clk 00:11:32]} {[%emt 00:00:51]}
39. Nf4 {[%clk 00:00:41]} {[%emt 00:00:19]} Be4 {[%clk 00:11:30]} {[%emt
00:00:33]} 40. Rg8 {[%clk 00:30:32]} {[%emt 00:00:40]} Rd2 {[%clk 00:40:30]}
{[%emt 00:01:30]} 41. a4 {[%clk 00:21:55]} {[%emt 00:09:06]} e5 {[%clk
00:33:55]} {[%emt 00:07:07]} 42. Nh3 {[%clk 00:22:01]} {[%emt 00:00:23]} Bd5
{[%clk 00:34:11]} {[%emt 00:00:15]} 43. Rg3 {[%clk 00:20:45]} {[%emt 00:01:44]}
f4 {[%clk 00:33:55]} {[%emt 00:00:46]} 44. Nf2 {[%clk 00:19:07]} {[%emt
00:02:08]} fxg3 {[%clk 00:29:31]} {[%emt 00:04:55]} 45. Ne4+ {[%clk 00:19:25]}
{[%emt 00:00:11]} Ke6 {[%clk 00:29:54]} {[%emt 00:00:08]} 46. Nxd2 {[%clk
00:19:47]} {[%emt 00:00:07]} Rd4 {[%clk 00:30:16]} {[%emt 00:00:08]} 47. Nf3
{[%clk 00:20:09]} {[%emt 00:00:08]} Bxf3 {[%clk 00:30:40]} {[%emt 00:00:07]} 48.
gxf3 {[%clk 00:20:26]} {[%emt 00:00:12]} Kf5 {[%clk 00:30:58]} {[%emt
00:00:13]} 49. Rc1 {[%clk 00:20:02]} {[%emt 00:00:52]} Kf4 {[%clk 00:30:49]}
{[%emt 00:00:39]} 50. Rc7 {[%clk 00:20:09]} {[%emt 00:00:23]} Rd1+ {[%clk
00:31:14]} {[%emt 00:00:06]} 51. Kg2 {[%clk 00:20:31]} {[%emt 00:00:08]} Rd2+
{[%clk 00:31:40]} {[%emt 00:00:05]} 52. Kg1 {[%clk 00:20:52]} {[%emt 00:00:08]}
h5 {[%clk 00:31:53]} {[%emt 00:00:17]} 53. Rf7+ {[%clk 00:20:10]} {[%emt
00:01:12]} Ke3 {[%clk 00:32:02]} {[%emt 00:00:22]} 54. Rxa7 {[%clk 00:20:06]}
{[%emt 00:00:35]} h4 {[%clk 00:32:17]} {[%emt 00:00:15]} 0-1

[Event "Norwegian Championship 2022"]
[Site "Kongsvinger, Norway"]
[Date "2022.07.15"]
[Round "8"]
[White " Østenstad, Berge"]
[Black "Hauge, Lars Oskar"]
[Result "0-1"]
[Board "4"]
[TimeControl "40/5400+30:1800+30"]
[WhiteTitle "GM"]
[BlackTitle "GM"]
[WhiteFideId "1500058"]
[BlackFideId "1509276"]
[WhiteElo "2451"]
[BlackElo "2526"]

1. Nf3 {[%clk 01:30:55]} {[%emt 00:00:04]} f5 {[%clk 01:30:48]} {[%emt
00:00:13]} 2. d4 {[%clk 01:31:14]} {[%emt 00:00:11]} Nf6 {[%clk 01:31:13]}
{[%emt 00:00:05]} 3. g3 {[%clk 01:31:35]} {[%emt 00:00:09]} g6 {[%clk
01:31:40]} {[%emt 00:00:04]} 4. Bg2 {[%clk 01:32:01]} {[%emt 00:00:04]} Bg7
{[%clk 01:32:07]} {[%emt 00:00:04]} 5. c4 {[%clk 01:32:18]} {[%emt 00:00:12]}
d6 {[%clk 01:32:27]} {[%emt 00:00:10]} 6. Nc3 {[%clk 01:32:35]} {[%emt
00:00:12]} O-O {[%clk 01:32:52]} {[%emt 00:00:05]} 7. O-O {[%clk 01:32:52]}
{[%emt 00:00:12]} Nc6 {[%clk 01:33:19]} {[%emt 00:00:03]} 8. d5 {[%clk
01:32:03]} {[%emt 00:01:18]} Ne5 {[%clk 01:33:41]} {[%emt 00:00:08]} 9. Qb3
{[%clk 01:28:49]} {[%emt 00:03:43]} Kh8 {[%clk 01:32:55]} {[%emt 00:01:18]} 10.
Rd1 {[%clk 01:06:03]} {[%emt 00:23:16]} Nfd7 {[%clk 01:10:31]} {[%emt
00:22:53]} 11. Be3 {[%clk 00:57:06]} {[%emt 00:09:27]} Nc5 {[%clk 00:56:49]}
{[%emt 00:14:13]} 12. Bxc5 {[%clk 00:56:02]} {[%emt 00:01:34]} Nxf3+ {[%clk
00:56:24]} {[%emt 00:00:54]} 13. exf3 {[%clk 00:54:59]} {[%emt 00:01:33]} dxc5
{[%clk 00:56:43]} {[%emt 00:00:12]} 14. f4 {[%clk 00:53:15]} {[%emt 00:02:13]}
a6 {[%clk 00:53:08]} {[%emt 00:04:06]} 15. Re1 {[%clk 00:51:17]} {[%emt
00:02:28]} Qd6 {[%clk 00:50:40]} {[%emt 00:02:58]} 16. Re2 {[%clk 00:46:23]}
{[%emt 00:05:24]} Bd7 {[%clk 00:46:01]} {[%emt 00:05:09]} 17. Rae1 {[%clk
00:41:48]} {[%emt 00:05:04]} Bf6 {[%clk 00:46:07]} {[%emt 00:00:24]} 18. a4
{[%clk 00:39:51]} {[%emt 00:02:27]} Rab8 {[%clk 00:45:47]} {[%emt 00:00:51]} 19.
h4 {[%clk 00:35:43]} {[%emt 00:04:37]} Be8 {[%clk 00:43:08]} {[%emt 00:03:09]}
20. Re6 {[%clk 00:33:26]} {[%emt 00:02:46]} Qd8 {[%clk 00:43:24]} {[%emt
00:00:14]} 21. Qa3 {[%clk 00:29:56]} {[%emt 00:03:58]} Bf7 {[%clk 00:43:36]}
{[%emt 00:00:20]} 22. R6e3 {[%clk 00:29:07]} {[%emt 00:01:18]} Qd6 {[%clk
00:42:00]} {[%emt 00:02:06]} 23. Qb3 {[%clk 00:28:49]} {[%emt 00:00:48]} Rfe8
{[%clk 00:41:21]} {[%emt 00:01:09]} 24. Qc2 {[%clk 00:19:09]} {[%emt 00:10:11]}
Bd4 {[%clk 00:38:14]} {[%emt 00:03:36]} 25. R3e2 {[%clk 00:19:06]} {[%emt
00:00:33]} c6 {[%clk 00:37:16]} {[%emt 00:01:29]} 26. b3 {[%clk 00:15:40]}
{[%emt 00:03:56]} Rbd8 {[%clk 00:31:47]} {[%emt 00:05:59]} 27. dxc6 {[%clk
00:12:40]} {[%emt 00:03:31]} bxc6 {[%clk 00:31:36]} {[%emt 00:00:41]} 28. Nb1
{[%clk 00:12:20]} {[%emt 00:00:49]} e5 {[%clk 00:29:23]} {[%emt 00:02:44]} 29.
fxe5 {[%clk 00:12:28]} {[%emt 00:00:22]} Rxe5 {[%clk 00:29:38]} {[%emt
00:00:15]} 30. Nd2 {[%clk 00:12:08]} {[%emt 00:00:49]} Rxe2 {[%clk 00:27:22]}
{[%emt 00:02:46]} 31. Rxe2 {[%clk 00:12:34]} {[%emt 00:00:04]} Qxg3 {[%clk
00:26:10]} {[%emt 00:01:42]} 32. Nf3 {[%clk 00:12:25]} {[%emt 00:00:38]} Qd6
{[%clk 00:25:45]} {[%emt 00:00:57]} 33. Qc1 {[%clk 00:11:47]} {[%emt 00:01:06]}
Kg7 {[%clk 00:24:51]} {[%emt 00:01:26]} 34. Qe1 {[%clk 00:11:06]} {[%emt
00:01:11]} Bf6 {[%clk 00:24:19]} {[%emt 00:01:02]} 35. Rd2 {[%clk 00:10:26]}
{[%emt 00:01:10]} Qc7 {[%clk 00:21:55]} {[%emt 00:02:54]} 36. Ng5 {[%clk
00:07:22]} {[%emt 00:03:33]} Bc3 {[%clk 00:16:32]} {[%emt 00:05:54]} 37. Rd7
{[%clk 00:04:36]} {[%emt 00:03:16]} Qxd7 {[%clk 00:16:44]} {[%emt 00:00:18]} 38.
Qxc3+ {[%clk 00:05:03]} {[%emt 00:00:03]} Qd4 {[%clk 00:16:11]} {[%emt
00:01:02]} 39. Qa5 {[%clk 00:05:22]} {[%emt 00:00:11]} Qa1+ {[%clk 00:13:56]}
{[%emt 00:02:46]} 40. Kh2 {[%clk 00:34:15]} {[%emt 00:01:37]} Qe5+ {[%clk
00:44:13]} {[%emt 00:00:12]} 0-1

[Event "Norwegian Championship 2022"]
[Site "Kongsvinger, Norway"]
[Date "2022.07.15"]
[Round "8"]
[White "Østmoe, Geir Sune Tallaksen"]
[Black "Sjøberg, Isak"]
[Result "1/2-1/2"]
[Board "5"]
[TimeControl "40/5400+30:1800+30"]
[WhiteTitle "IM"]
[BlackTitle "FM"]
[WhiteFideId "1502778"]
[BlackFideId "1521640"]
[WhiteElo "2483"]
[BlackElo "2308"]

1. d4 {[%clk 01:30:53]} {[%emt 00:00:07]} Nf6 {[%clk 01:30:45]} {[%emt
00:00:15]} 2. Nf3 {[%clk 01:31:14]} {[%emt 00:00:10]} g6 {[%clk 01:30:45]}
{[%emt 00:00:29]} 3. Nbd2 {[%clk 01:31:15]} {[%emt 00:00:29]} Bg7 {[%clk
01:31:04]} {[%emt 00:00:11]} 4. e4 {[%clk 01:31:24]} {[%emt 00:00:21]} d6
{[%clk 01:31:30]} {[%emt 00:00:04]} 5. Bb5+ {[%clk 01:31:22]} {[%emt 00:00:32]}
c6 {[%clk 01:29:25]} {[%emt 00:02:34]} 6. Bd3 {[%clk 01:31:47]} {[%emt
00:00:05]} O-O {[%clk 01:29:49]} {[%emt 00:00:06]} 7. O-O {[%clk 01:31:02]}
{[%emt 00:01:15]} c5 {[%clk 01:28:36]} {[%emt 00:01:43]} 8. c3 {[%clk
01:30:17]} {[%emt 00:01:15]} cxd4 {[%clk 01:28:48]} {[%emt 00:00:18]} 9. cxd4
{[%clk 01:30:42]} {[%emt 00:00:05]} e5 {[%clk 01:29:14]} {[%emt 00:00:05]} 10.
d5 {[%clk 01:28:24]} {[%emt 00:02:48]} a5 {[%clk 01:29:13]} {[%emt 00:00:30]}
11. a4 {[%clk 01:27:06]} {[%emt 00:01:48]} Na6 {[%clk 01:26:39]} {[%emt
00:03:04]} 12. Re1 {[%clk 01:23:32]} {[%emt 00:04:04]} Nd7 {[%clk 01:17:09]}
{[%emt 00:09:59]} 13. Bb5 {[%clk 01:11:54]} {[%emt 00:12:08]} Ndc5 {[%clk
01:04:05]} {[%emt 00:13:34]} 14. Nc4 {[%clk 01:10:19]} {[%emt 00:02:05]} b6
{[%clk 01:00:57]} {[%emt 00:03:38]} 15. Ra3 {[%clk 01:05:14]} {[%emt 00:05:36]}
Rb8 {[%clk 00:57:28]} {[%emt 00:03:58]} 16. Nfd2 {[%clk 00:55:36]} {[%emt
00:10:08]} f5 {[%clk 00:49:54]} {[%emt 00:08:03]} 17. f4 {[%clk 00:49:46]}
{[%emt 00:06:20]} Nb4 {[%clk 00:38:14]} {[%emt 00:12:10]} 18. exf5 {[%clk
00:35:40]} {[%emt 00:14:37]} Bxf5 {[%clk 00:29:32]} {[%emt 00:09:11]} 19. fxe5
{[%clk 00:30:56]} {[%emt 00:05:15]} Bc2 {[%clk 00:27:16]} {[%emt 00:02:46]} 20.
Qg4 {[%clk 00:23:56]} {[%emt 00:07:30]} Nbd3 {[%clk 00:24:53]} {[%emt
00:02:53]} 21. Nf3 {[%clk 00:22:08]} {[%emt 00:02:18]} Nxe1 {[%clk 00:21:33]}
{[%emt 00:03:50]} 22. Nxe1 {[%clk 00:22:31]} {[%emt 00:00:07]} Bf5 {[%clk
00:21:46]} {[%emt 00:00:16]} 23. Qe2 {[%clk 00:21:47]} {[%emt 00:01:14]} dxe5
{[%clk 00:20:41]} {[%emt 00:01:35]} 24. Nxe5 {[%clk 00:20:35]} {[%emt
00:01:42]} Kh8 {[%clk 00:16:34]} {[%emt 00:04:37]} 25. Nc6 {[%clk 00:16:34]}
{[%emt 00:04:31]} Qxd5 {[%clk 00:16:48]} {[%emt 00:00:15]} 26. Nxb8 {[%clk
00:16:59]} {[%emt 00:00:05]} Rxb8 {[%clk 00:16:49]} {[%emt 00:00:30]} 27. Nf3
{[%clk 00:15:52]} {[%emt 00:01:37]} Rf8 {[%clk 00:14:44]} {[%emt 00:02:35]} 28.
Re3 {[%clk 00:14:35]} {[%emt 00:01:47]} Nb3 {[%clk 00:13:31]} {[%emt 00:01:43]}
29. Bc4 {[%clk 00:12:08]} {[%emt 00:02:58]} Qc5 {[%clk 00:08:52]} {[%emt
00:05:09]} 30. Bxb3 {[%clk 00:12:12]} {[%emt 00:00:26]} Qxc1+ {[%clk 00:09:17]}
{[%emt 00:00:05]} 31. Kf2 {[%clk 00:10:48]} {[%emt 00:01:55]} Bg4 {[%clk
00:08:35]} {[%emt 00:01:12]} 32. Re4 {[%clk 00:07:08]} {[%emt 00:04:10]} Bxf3
{[%clk 00:08:07]} {[%emt 00:00:57]} 33. gxf3 {[%clk 00:07:34]} {[%emt
00:00:04]} Qh1 {[%clk 00:07:32]} {[%emt 00:01:05]} 34. Kg3 {[%clk 00:06:03]}
{[%emt 00:02:02]} Qg1+ {[%clk 00:06:45]} {[%emt 00:01:17]} 35. Qg2 {[%clk
00:06:06]} {[%emt 00:00:26]} Qc5 {[%clk 00:06:45]} {[%emt 00:00:30]} 36. Qe2
{[%clk 00:05:55]} {[%emt 00:00:41]} Qg1+ {[%clk 00:06:55]} {[%emt 00:00:20]} 37.
Qg2 {[%clk 00:06:18]} {[%emt 00:00:08]} Qc5 {[%clk 00:06:07]} {[%emt 00:01:18]}
38. Qe2 {[%clk 00:06:22]} {[%emt 00:00:26]} 1/2-1/2